bitfinex/quotes_SOLUSD_20240716
["timestamp","ask_amount","ask_price","bid_price","bid_amount"]
[1721138075351,10.0,156.89,156.81,16.3003]
[1721138075352,6.3759,156.84,156.81,16.3003]
[1721138075547,1.30456224,156.83,156.81,16.3003]
[1721138075763,1.30456224,156.86,156.81,16.3003]
[1721138075955,1.30456224,156.85,156.81,16.3003]
[1721138076155,6.3759,156.84,156.81,16.3003]
[1721138076350,1.30456224,156.83,156.79,23.1638054]
[1721138077341,1.30456224,156.83,156.8,6.3775]
[1721138077538,1.30456224,156.84,156.8,6.3775]
[1721138078248,1.30456224,156.84,156.79,0.8419054]
[1721138078448,1.30456224,156.85,156.82,6.3764]
[1721138078864,1.30456224,156.85,156.79,0.8419054]
[1721138079171,7.68036224,156.85,156.8,6.3775]
[1721138080070,45.0,156.86,156.8,15.9433]
[1721138080071,1.30456224,156.86,156.8,15.9433]
[1721138080253,1.30456224,156.86,156.81,1.27534988]
[1721138081052,6.3749,156.87,156.82,6.3763]
[1721138081370,1.30456224,156.86,156.8,15.9433]
[1721138081547,1.30456224,156.85,156.8,15.9433]
[1721138081748,1.30456224,156.86,156.8,15.9433]
[1721138081959,1.30456224,156.86,156.79,0.8419054]
[1721138082146,1.30456224,156.86,156.82,22.318]
[1721138082468,1.30456224,156.86,156.82,15.9414]
[1721138082659,7.67996224,156.86,156.81,6.377]
[1721138082963,51.3748,156.87,156.82,6.3766]
[1721138083173,1.30456224,156.86,156.82,6.3766]
[1721138084146,7.67966224,156.86,156.81,22.3189]
[1721138084370,6.3751,156.86,156.81,22.3189]
[1721138084671,1.30456224,156.85,156.81,22.3189]
[1721138084874,7.68006224,156.85,156.81,22.3189]
[1721138085074,6.3755,156.85,156.81,15.9419]
[1721138086266,1.30456224,156.88,156.8,1.27522089]
[1721138086578,46.30456224,156.88,156.8,1.27522089]
[1721138087380,6.3755,156.85,156.8,7.65262089]
[1721138087580,6.3752,156.86,156.81,6.377]
[1721138087759,1.30456224,156.85,156.81,6.377]
[1721138088683,7.67976224,156.86,156.81,6.377]
[1721138088880,1.30456224,156.85,156.81,6.377]
[1721138089176,7.67976224,156.86,156.81,6.377]
[1721138089378,7.68006224,156.85,156.81,6.377]
[1721138089585,6.3755,156.85,156.81,6.377]
[1721138089958,7.67926224,156.87,156.82,6.3765]
[1721138090161,7.67926224,156.87,156.82,6.3766]
[1721138090666,6.3747,156.87,156.82,6.3766]
[1721138091063,6.3751,156.86,156.82,6.3766]
[1721138091262,6.3748,156.87,156.82,6.3766]
[1721138091951,6.3755,156.85,156.8,22.3207]
[1721138092660,7.67976224,156.86,156.81,6.3771]
[1721138092872,6.3752,156.86,156.81,6.3771]
[1721138093161,6.3752,156.86,156.82,1.27519547]
[1721138093980,6.3755,156.85,156.81,6.3771]
[1721138094275,6.3759,156.84,156.81,1.2466839]
[1721138094454,15.64,156.84,156.81,1.2466839]
[1721138094857,15.64,156.84,156.8,39.23532824]
[1721138095778,6.3756,156.85,156.8,39.23532824]
[1721138096075,15.64,156.84,156.8,32.85812824]
[1721138096283,15.64,156.85,156.8,32.85812824]
[1721138096486,15.64,156.85,156.8,17.21812824]
[1721138096677,15.64,156.85,156.81,6.377]
[1721138097168,22.0155,156.85,156.81,6.377]
[1721138097371,22.0155,156.85,156.8,39.23552824]
[1721138097856,1.30456224,156.88,156.82,6.3766]
[1721138098063,22.0151,156.86,156.81,23.29219784]
[1721138099460,15.64,156.86,156.82,6.3764]
[1721138099764,15.64,156.85,156.81,23.29219784]
[1721138100453,15.64,156.85,156.82,6.3766]
[1721138101380,6.3752,156.86,156.82,6.3766]
[1721138101563,22.0152,156.86,156.82,6.3766]
[1721138101877,22.0152,156.86,156.81,23.29219784]
[1721138102082,1.30456224,156.89,156.8,15.9435]
[1721138102083,23.32016224,156.85,156.8,22.3209]
[1721138102386,6.3756,156.85,156.8,37.9609]
[1721138102564,6.3756,156.85,156.81,6.3771]
[1721138102760,1.30456224,156.88,156.82,6.3764]
[1721138103082,6.375,156.87,156.83,6.3762]
[1721138103389,15.64,156.86,156.83,6.3762]
[1721138103689,15.64,156.86,156.83,7.65130146]
[1721138103985,22.0151,156.86,156.82,37.958]
[1721138104183,22.0151,156.86,156.82,22.318]
[1721138104488,22.0151,156.86,156.83,1.27508998]
[1721138104665,15.64,156.86,156.83,1.27508998]
[1721138106284,6.3747,156.87,156.82,22.318]
[1721138106468,15.64,156.86,156.82,22.318]
[1721138106978,15.64,156.86,156.82,15.9415]
[1721138107194,1.30456224,156.9,156.84,30.9585]
[1721138107369,1.30456224,156.93,156.87,15.64]
[1721138107562,15.64,156.92,156.88,7.64885307]
[1721138107883,22.0126,156.92,156.88,1.27465307]
[1721138108278,22.0126,156.92,156.87,22.0146]
[1721138108787,15.64,156.92,156.85,22.2619]
[1721138108956,7.67656224,156.94,156.89,6.3738]
[1721138109157,33.31606224,156.95,156.91,6.373]
[1721138109361,33.31606224,156.95,156.9,16.91450818]
[1721138109672,15.64,156.94,156.91,1.2450507]
[1721138110572,17.67606224,156.95,156.91,1.2450507]
[1721138110876,33.31606224,156.95,156.91,1.2450507]
[1721138111190,6.3719,156.94,156.91,1.2450507]
[1721138111494,7.67676224,156.93,156.88,22.0142]
[1721138111668,22.0122,156.93,156.88,23.28870205]
[1721138111991,6.3722,156.93,156.88,23.28870205]
[1721138112167,22.0122,156.93,156.88,23.28870205]
[1721138112485,22.0119,156.94,156.9,15.64]
[1721138112657,15.64,156.95,156.91,23.28745606]
[1721138112862,1.30456224,156.98,156.93,15.64]
[1721138113063,15.64,156.98,156.94,23.2858004]
[1721138113284,15.64,156.99,156.95,15.64]
[1721138113509,22.0098,156.99,156.94,37.9411]
[1721138113666,15.64,156.97,156.92,6.0132]
[1721138113871,15.64,156.96,156.92,6.0132]
[1721138114276,1.30456224,156.98,156.92,6.0132]
[1721138114575,15.64,156.97,156.93,23.28615157]
[1721138115389,15.64,156.97,156.94,6.3718]
[1721138115595,1.30456224,157.0,156.95,22.0112]
[1721138115891,1.30456224,157.0,156.93,15.9299]
[1721138116082,6.3705,156.98,156.93,22.3018]
[1721138116410,6.3706,156.97,156.93,22.3018]
[1721138116705,22.0106,156.97,156.93,22.3018]
[1721138117377,6.3706,156.97,156.92,12.3858]
[1721138117584,6.3702,156.98,156.93,6.3722]
[1721138117788,1.30456224,156.97,156.93,6.3722]
[1721138119392,1.30456224,156.97,156.91,21.8429]
[1721138119393,6.3714,156.96,156.91,21.8429]
[1721138119569,1.30456224,156.95,156.91,15.4702]
[1721138119769,1.30456224,156.97,156.91,15.4702]
[1721138120001,6.3718,156.94,156.91,15.4702]
[1721138120174,15.64,156.92,156.91,15.4702]
[1721138120690,7.67556224,156.96,156.91,37.7754]
[1721138120904,15.64,156.94,156.91,37.7754]
[1721138121294,7.67596224,156.95,156.91,37.7754]
[1721138121496,15.64,156.94,156.91,37.7754]
[1721138121692,16.94456224,156.94,156.91,31.4025]
[1721138122000,15.64,156.93,156.91,31.4025]
[1721138122292,15.64,156.93,156.91,15.4702]
[1721138122592,7.67646224,156.94,156.89,6.3738]
[1721138122982,1.30456224,156.94,156.89,6.3738]
[1721138123191,1.30456224,156.93,156.89,6.3738]
[1721138123380,1.30456224,156.93,156.88,28.9522]
[1721138123579,7.67736224,156.92,156.88,15.9351]
[1721138124301,6.3717,156.95,156.89,7.64823136]
[1721138124603,1.30456224,156.93,156.89,6.3737]
[1721138124799,15.64,156.91,156.89,6.3737]
[1721138125106,15.64,156.91,156.88,15.9351]
[1721138125305,16.94456224,156.91,156.88,22.3093]
[1721138125510,1.30456224,156.91,156.88,22.3093]
[1721138126084,1.30456224,156.92,156.88,22.3093]
[1721138126493,15.64,156.91,156.88,22.3093]
[1721138126802,15.64,156.89,156.87,15.0108]
[1721138127006,1.30456224,156.9,156.87,15.0108]
[1721138127194,1.30456224,156.89,156.87,15.0108]
[1721138127394,6.3732,156.91,156.87,15.0108]
[1721138127395,1.30456224,156.9,156.87,15.0108]
[1721138127899,1.30456224,156.9,156.87,21.3854]
[1721138128108,15.64,156.89,156.87,21.3853]
[1721138128898,16.3715,156.95,156.9,6.3734]
[1721138129106,52.67646224,156.94,156.89,22.3081]
[1721138129304,6.3723,156.93,156.89,15.9344]
[1721138129508,7.67726224,156.92,156.88,6.3742]
[1721138129805,1.30456224,156.92,156.89,6.3737]
[1721138129982,16.94456224,156.92,156.89,6.3737]
[1721138130490,1.30456224,156.94,156.9,15.9329]
[1721138130689,7.90606823,156.97,156.92,22.2552]
[1721138130894,23.31476224,156.98,156.93,16.91423015]
[1721138131202,15.64,156.98,156.95,6.3713]
[1721138131408,1.30456224,157.01,156.98,6.3701]
[1721138131713,25.9184,157.06,156.98,6.3701]
[1721138131714,258.1,157.07,156.99,1.24372995]
[1721138131923,1.30456224,157.05,156.99,16.88372995]
[1721138132208,258.1,157.07,156.99,7.80902995]
[1721138132209,1.30456224,157.06,156.99,7.80902995]
[1721138132510,22.0076,157.05,157.0,22.0093]
[1721138132706,15.64,157.03,156.99,6.5653]
[1721138133008,6.3686,157.02,156.99,6.5653]
[1721138133193,15.64,157.03,156.99,6.5653]
[1721138134384,22.0083,157.03,156.99,6.5653]
[1721138135092,6.3683,157.03,156.99,6.5653]
[1721138135410,6.3686,157.02,156.98,15.925]
[1721138135614,1.30456224,157.05,156.99,6.3698]
[1721138135615,6.3681,157.04,156.99,6.3698]
[1721138135918,7.67306224,157.03,156.98,22.2951]
[1721138136085,6.3685,157.03,156.98,22.2951]
[1721138136413,1.30456224,157.05,156.99,7.06805881]
[1721138136597,7.67246224,157.04,156.99,7.06805881]
[1721138136911,15.917,157.07,156.95,6.653]
[1721138136912,1.30456224,157.06,157.02,6.3685]
[1721138137086,6.3667,157.07,157.02,7.64158131]
[1721138138988,6.3674,157.05,157.02,1.27298131]
[1721138139189,6.3671,157.06,157.01,15.4291]
[1721138139407,7.67216224,157.05,157.01,15.4291]
[1721138139587,6.3676,157.05,157.01,16.7027]
[1721138140084,6.367,157.06,157.02,1.27357252]
[1721138140484,6.367,157.06,157.01,21.798]
[1721138141808,1.30456224,157.09,157.01,15.4291]
[1721138142119,46.30456224,157.09,157.01,15.4291]
[1721138142497,6.367,157.06,157.01,21.798]
[1721138142894,1.30456224,157.05,157.01,15.4291]
[1721138143113,1.30456224,157.07,157.01,15.4291]
[1721138143618,6.3678,157.04,157.01,15.4291]
[1721138145608,6.3672,157.06,157.01,21.7977]
[1721138145810,1.30456224,157.05,157.01,21.7977]
[1721138146001,1.30456224,157.07,157.01,15.4291]
[1721138146196,6.367,157.06,157.01,21.798]
[1721138146495,7.67126224,157.07,157.02,7.64209026]
[1721138147088,1.30456224,157.06,157.02,7.64209026]
[1721138147311,6.3667,157.07,157.02,7.64209026]
[1721138147312,7.67126224,157.07,157.02,7.64209026]
[1721138147516,1.30456224,157.07,157.03,6.3681]
[1721138147714,1.30456224,157.07,157.02,1.27359026]
[1721138147715,7.67126224,157.07,157.02,6.3685]
[1721138148396,6.367,157.06,157.01,21.798]
[1721138149114,7.90589016,157.1,157.02,7.29598923]
[1721138149293,6.3651,157.11,157.03,61.2644]
[1721138149497,6.3646,157.12,157.07,6.3665]
[1721138149697,6.365,157.11,157.06,22.284]
[1721138149897,15.9089,157.15,157.06,22.2837]
[1721138150196,6.365,157.11,157.07,7.63965348]
[1721138150516,6.365,157.11,157.06,22.2839]
[1721138150814,6.3658,157.09,157.04,6.3676]
[1721138150998,1.30456224,157.08,157.04,1.27342472]
[1721138151197,1.30456224,157.11,157.03,31.8444]
[1721138151419,6.3662,157.08,157.03,31.8444]
[1721138151592,1.30456224,157.07,157.03,38.2125]
[1721138152415,7.67116224,157.07,157.03,31.8444]
[1721138152718,6.3662,157.08,157.03,38.2126]
[1721138152924,6.3678,157.04,157.0,22.2921]
[1721138153213,6.3675,157.05,157.0,22.2921]
[1721138153414,1.30456224,157.04,157.0,22.2921]
[1721138153616,1.30456224,157.04,156.99,15.8263]
[1721138153817,6.3689,157.02,156.99,15.8263]
[1721138153988,1.30456224,157.01,156.99,15.8263]
[1721138154193,6.3689,157.02,156.99,15.8263]
[1721138155005,1.30456224,157.01,156.99,15.8263]
[1721138155620,7.67366224,157.01,156.99,15.8263]
[1721138155829,7.67396224,157.0,156.95,22.4106]
[1721138156007,6.37,156.99,156.95,22.4106]
[1721138156205,7.67476224,156.98,156.95,15.9239]
[1721138156610,6.3706,156.97,156.95,15.9239]
[1721138156917,7.67476224,156.98,156.95,15.9239]
[1721138157104,1.30456224,156.98,156.95,15.9239]
[1721138157810,7.67486224,156.98,156.95,15.9239]
[1721138158005,1.30456224,156.98,156.95,15.9239]
[1721138158214,6.371,156.96,156.92,6.3725]
[1721138158418,1.30456224,156.95,156.92,6.3725]
[1721138158613,1.30456224,156.95,156.91,28.9297]
[1721138158994,6.371,156.96,156.91,28.9297]
[1721138159189,6.3707,156.97,156.92,6.3726]
[1721138159417,1.30456224,156.96,156.92,6.3726]
[1721138160198,1.30456224,156.98,156.92,15.9308]
[1721138160398,7.67486224,156.98,156.93,6.3721]
[1721138160815,6.3709,156.97,156.92,15.9308]
[1721138161016,1.30456224,156.96,156.92,22.3033]
[1721138161321,1.30456224,156.96,156.92,15.9308]
[1721138161322,7.67566224,156.96,156.92,15.9308]
[1721138161519,6.3707,156.97,156.92,22.3033]
[1721138161827,6.3706,156.97,156.93,6.3719]
[1721138162119,6.3706,156.97,156.92,15.9308]
[1721138162422,6.3707,156.97,156.93,6.3722]
[1721138162607,6.3707,156.97,156.92,22.3033]
[1721138162919,7.67476224,156.99,156.94,6.3717]
[1721138163223,1.30456224,156.98,156.93,6.3721]
[1721138163394,6.371,156.97,156.92,22.3034]
[1721138164012,6.371,156.96,156.92,22.3034]
[1721138164399,6.371,156.96,156.92,15.9308]
[1721138164911,6.3707,156.97,156.92,22.3034]
[1721138165112,7.67526224,156.97,156.92,22.3034]
[1721138165314,6.3702,156.98,156.92,17.20511677]
[1721138165539,7.67516224,156.97,156.92,15.9308]
[1721138165743,7.67566224,156.96,156.92,15.9308]
[1721138165904,6.3711,156.96,156.92,22.3033]
[1721138166427,1.30456224,156.95,156.91,16.07]
[1721138166599,6.3719,156.94,156.91,16.07]
[1721138166800,1.30456224,156.93,156.91,16.07]
[1721138167301,7.67696224,156.93,156.89,15.9341]
[1721138167504,6.3737,156.9,156.87,22.0955]
[1721138167800,7.67856224,156.89,156.83,38.3575]
[1721138168311,1.30456224,156.89,156.83,38.3575]
[1721138168513,6.3735,156.9,156.85,6.3751]
[1721138168728,1.30456224,156.89,156.86,6.375]
[1721138169429,1.30456224,156.9,156.87,6.3745]
[1721138169731,7.67766224,156.91,156.86,6.3749]
[1721138170430,6.3731,156.91,156.86,6.3749]
[1721138170637,6.3727,156.92,156.87,6.3746]
[1721138170932,1.30456224,156.91,156.87,6.3746]
[1721138171728,1.30456224,156.94,156.88,17.2101467]
[1721138172208,30.0,156.96,156.88,23.5840467]
[1721138172526,6.3727,156.92,156.88,23.5840467]
[1721138172712,6.3727,156.92,156.88,22.3095]
[1721138173430,6.3734,156.9,156.85,22.3134]
[1721138174030,6.3732,156.91,156.86,6.375]
[1721138174202,7.67806224,156.9,156.85,22.3137]
[1721138174400,6.3735,156.9,156.85,22.3137]
[1721138174601,1.30456224,156.89,156.83,28.7929]
[1721138174823,1.30456224,156.89,156.83,22.417]
[1721138175030,6.374,156.89,156.84,6.3758]
[1721138175216,7.67766224,156.91,156.86,6.3748]
[1721138175415,1.30456224,156.91,156.86,15.9373]
[1721138175613,1.30456224,156.91,156.86,22.3123]
[1721138175931,15.9327,156.91,156.83,38.3571]
[1721138176231,15.9327,156.91,156.83,44.733]
[1721138176232,1.30456224,156.9,156.83,44.733]
[1721138176431,1.30456224,156.89,156.83,44.733]
[1721138176604,6.3747,156.87,156.83,38.3571]
[1721138177046,1.30456224,156.89,156.83,15.9887]
[1721138177207,1.30456224,156.88,156.83,15.9887]
[1721138177534,6.3753,156.86,156.83,15.9887]
[1721138177930,1.30456224,156.88,156.8,15.9432]
[1721138177931,1.30456224,156.85,156.8,15.9432]
[1721138178233,6.376,156.84,156.8,15.9432]
[1721138178441,6.3755,156.86,156.8,22.3206]
[1721138178606,7.68006224,156.85,156.8,22.3206]
[1721138178812,1.30456224,156.85,156.79,16.1516054]
[1721138179023,1.30456224,156.85,156.79,22.5295054]
[1721138179220,1.30456224,156.85,156.8,6.3773]
[1721138179743,1.30456224,156.85,156.81,6.3771]
[1721138180911,7.68006224,156.85,156.81,6.3771]
[1721138181112,1.30456224,156.84,156.81,6.3771]
[1721138182150,7.68006224,156.85,156.8,6.3774]
[1721138183033,6.3755,156.85,156.8,6.3774]
[1721138183338,1.30456224,156.84,156.79,16.1516054]
[1721138183941,6.3775,156.8,156.79,0.8419054]
[1721138184517,6.3772,156.81,156.79,0.8419054]
[1721138184720,1.30456224,156.81,156.79,0.8419054]
[1721138184926,1.30456224,156.82,156.79,7.2197054]
[1721138185246,1.30456224,156.82,156.79,16.7862054]
[1721138185445,1.30456224,156.84,156.79,16.7862054]
[1721138185744,1.30456224,156.84,156.79,0.8419054]
[1721138186136,6.3767,156.82,156.79,0.8419054]
[1721138187047,7.68176224,156.81,156.79,0.8419054]
[1721138187256,6.3772,156.81,156.79,0.8419054]
[1721138188258,7.68206224,156.8,156.79,0.8419054]
[1721138189136,6.3775,156.8,156.79,0.8419054]
[1721138189344,7.68206224,156.8,156.79,0.8419054]
[1721138189658,52.68206224,156.8,156.79,0.8419054]
[1721138189833,62.68206224,156.8,156.79,0.8419054]
[1721138191960,7.68206224,156.8,156.79,0.8419054]
[1721138193067,52.68206224,156.8,156.79,0.8419054]
[1721138193236,7.68206224,156.8,156.79,0.8419054]
[1721138193429,17.68206224,156.8,156.79,0.8419054]
[1721138193661,62.68206224,156.8,156.79,0.8419054]
[1721138195636,7.68206224,156.8,156.79,0.8419054]
[1721138198236,7.68176224,156.81,156.79,0.8419054]
[1721138198559,1.30456224,156.83,156.79,2.11737435]
[1721138198741,6.3766,156.83,156.79,0.8419054]
[1721138199046,6.3766,156.83,156.79,2.11733889]
[1721138199380,1.30456224,156.85,156.79,8.49523889]
[1721138199381,6.376,156.84,156.79,8.49523889]
[1721138199539,7.68006224,156.85,156.8,6.3774]
[1721138199740,6.3751,156.86,156.79,6.8601054]
[1721138199960,6.3751,156.86,156.81,6.3771]
[1721138200860,1.30456224,156.87,156.8,0.17]
[1721138201051,6.3758,156.85,156.8,0.17]
[1721138201265,1.30456224,156.86,156.8,0.17]
[1721138201481,7.68006224,156.86,156.8,0.17]
[1721138201782,1.30456224,156.85,156.8,6.5475]
[1721138202096,7.67926224,156.87,156.8,16.1129]
[1721138202264,6.3752,156.86,156.8,16.1129]
[1721138202466,6.3752,156.86,156.8,22.4903]
[1721138202659,6.3757,156.85,156.8,22.4903]
[1721138202965,6.376,156.84,156.8,16.1129]
[1721138203271,1.30456224,156.87,156.81,1.27523141]
[1721138203477,6.3752,156.86,156.8,22.4901]
[1721138203672,6.3756,156.85,156.8,22.4901]
[1721138204093,6.3756,156.85,156.8,16.1129]
[1721138204387,6.3756,156.85,156.8,22.4901]
[1721138204696,6.3759,156.84,156.8,16.1129]
[1721138204992,1.30456224,156.87,156.8,22.4903]
[1721138205171,6.3758,156.85,156.8,22.4903]
[1721138205561,1.30456224,156.91,156.81,23.30608345]
[1721138205759,1.30456224,156.91,156.86,22.3126]
[1721138205975,1.30456224,156.91,156.84,6.3758]
[1721138206181,1.30456224,156.91,156.85,7.65034466]
[1721138206500,7.67796224,156.91,156.85,7.65034466]
[1721138206795,6.3734,156.91,156.86,6.375]
[1721138207090,7.67806224,156.9,156.85,22.3137]
[1721138207293,6.3735,156.9,156.85,22.3137]
[1721138207498,6.3731,156.91,156.86,6.3749]
[1721138207670,7.67816224,156.9,156.85,22.3137]
[1721138207997,6.3739,156.89,156.85,15.9383]
[1721138208179,7.67896224,156.88,156.82,0.34]
[1721138208495,1.30456224,156.87,156.83,6.3759]
[1721138208699,7.67956224,156.87,156.81,39.24786369]
[1721138208902,6.375,156.87,156.83,6.3763]
[1721138209069,6.375,156.87,156.82,6.3767]
[1721138209271,6.3744,156.88,156.83,6.3762]
[1721138209579,6.3744,156.88,156.84,6.3758]
[1721138209793,1.30456224,156.87,156.83,6.3762]
[1721138210273,6.3744,156.88,156.84,6.3758]
[1721138210477,6.3744,156.88,156.83,6.3762]
[1721138210695,1.30456224,156.87,156.83,6.3762]
[1721138211484,6.3744,156.88,156.84,6.3758]
[1721138211786,20.0,156.91,156.84,6.3758]
[1721138211787,1.30456224,156.87,156.84,6.3758]
[1721138211987,6.3754,156.86,156.81,28.4079]
[1721138212163,1.30456224,156.88,156.82,6.3766]
[1721138212366,7.67916224,156.88,156.82,6.3766]
[1721138212565,6.3751,156.86,156.82,6.3766]
[1721138213971,1.30456224,156.85,156.81,28.4079]
[1721138214371,7.68006224,156.85,156.81,15.661]
[1721138215297,1.30456224,156.84,156.81,15.661]
[1721138216277,1.30456224,156.84,156.81,22.038]
[1721138216895,1.30456224,156.84,156.82,6.3767]
[1721138217099,1.30456224,156.86,156.83,6.3763]
[1721138217974,1.30456224,156.86,156.84,6.3758]
[1721138218280,1.30456224,156.87,156.83,6.3761]
[1721138219188,7.67926224,156.87,156.83,6.3761]
[1721138219570,7.67926224,156.87,156.82,22.318]
[1721138219885,7.67926224,156.87,156.81,15.661]
[1721138219886,1.30456224,156.87,156.81,15.661]
[1721138220471,1.30456224,156.88,156.84,15.9394]
[1721138220680,6.3747,156.87,156.82,6.3766]
[1721138220894,1.30456224,156.86,156.82,6.3766]
[1721138222788,7.67966224,156.86,156.82,6.3766]
[1721138223693,1.30456224,156.86,156.82,6.3766]
[1721138223877,6.3748,156.87,156.82,6.3766]
[1721138224288,1.30456224,156.88,156.83,15.9404]
[1721138224497,1.30456224,156.88,156.84,6.3757]
[1721138224792,1.30456224,156.9,156.85,17.21331803]
[1721138224971,7.67806224,156.9,156.85,15.9383]
[1721138225171,10.0,156.92,156.84,12.8175]
[1721138225172,7.67876224,156.89,156.84,12.8175]
[1721138225573,6.3735,156.9,156.85,6.3754]
[1721138225802,1.30456224,156.89,156.85,6.3754]
[1721138225982,1.30456224,156.93,156.88,15.9352]
[1721138226189,6.3731,156.91,156.87,6.3746]
[1721138226388,1.30456224,156.92,156.88,6.3741]
[1721138226586,7.67686224,156.93,156.88,6.3742]
[1721138226788,1.30456224,156.92,156.87,15.9362]
[1721138227099,1.30456224,156.92,156.84,28.7566]
[1721138227399,10.0,156.91,156.84,28.7566]
[1721138227576,7.67806224,156.9,156.84,22.3811]
[1721138227777,1.30456224,156.89,156.86,6.3749]
[1721138227992,6.3737,156.9,156.85,6.3754]
[1721138228296,1.30456224,156.9,156.87,6.3745]
[1721138228470,1.30456224,156.91,156.87,6.3745]
[1721138228878,7.67776224,156.91,156.86,22.3122]
[1721138229086,6.3746,156.88,156.84,6.4418]
[1721138229286,15.9316,156.93,156.84,6.3756]
[1721138229287,7.67846224,156.89,156.84,6.3756]
[1721138229582,7.67866224,156.89,156.84,6.3756]
[1721138229782,7.67866224,156.89,156.85,6.3755]
[1721138230399,1.30456224,156.88,156.85,6.3755]
[1721138230601,47.87650632,156.94,156.85,15.9384]
[1721138230602,7.67796224,156.91,156.85,15.9384]
[1721138230911,6.3736,156.9,156.85,22.3137]
[1721138231076,1.30456224,156.91,156.87,6.3742]
[1721138231275,1.30456224,156.91,156.87,15.9364]
[1721138231478,7.67766224,156.91,156.87,15.9364]
[1721138231701,1.30456224,156.9,156.87,15.9364]
[1721138232006,45.0,156.93,156.88,6.374]
[1721138232007,1.30456224,156.92,156.88,6.374]
[1721138232177,1.30456224,156.92,156.87,15.9364]
[1721138232178,7.67716224,156.92,156.87,15.9364]
[1721138232378,6.3732,156.91,156.87,15.9364]
[1721138232593,6.3731,156.91,156.87,6.3747]
[1721138232803,6.3731,156.91,156.87,7.64945252]
[1721138233010,1.30456224,156.93,156.88,6.3741]
[1721138233304,6.373,156.91,156.86,22.3124]
[1721138233617,7.67726224,156.92,156.87,7.64937636]
[1721138233981,7.67726224,156.92,156.88,6.3742]
[1721138234290,6.3727,156.92,156.88,6.3742]
[1721138234476,6.3727,156.92,156.86,15.9375]
[1721138234679,6.3736,156.9,156.85,6.3752]
[1721138235013,1.30456224,156.89,156.84,6.3758]
[1721138235204,1.30456224,156.89,156.81,15.661]
[1721138235406,6.3751,156.86,156.82,6.3766]
[1721138235576,1.30456224,156.89,156.82,22.3181]
[1721138235577,6.3748,156.87,156.82,22.3181]
[1721138235913,6.3743,156.88,156.83,6.3761]
[1721138236201,6.3738,156.9,156.84,15.9394]
[1721138236406,1.30456224,156.89,156.83,6.376]
[1721138236591,6.3744,156.88,156.83,6.376]
[1721138237101,7.67936224,156.87,156.82,6.3766]
[1721138237293,6.3748,156.87,156.82,6.3766]
[1721138237495,6.3748,156.87,156.83,6.3762]
[1721138237701,6.3748,156.87,156.82,6.3765]
[1721138238011,6.3748,156.87,156.83,6.3762]
[1721138238311,6.3744,156.88,156.84,6.3758]
[1721138238490,1.30456224,156.87,156.84,6.3758]
[1721138239009,7.67936224,156.87,156.83,15.9404]
[1721138239224,6.3743,156.88,156.83,15.9404]
[1721138239587,7.67926224,156.87,156.83,22.3166]
[1721138239785,6.3747,156.87,156.83,22.3166]
[1721138240508,6.3744,156.88,156.83,22.3166]
[1721138240814,6.3748,156.87,156.83,22.3166]
[1721138241136,7.67996224,156.86,156.81,15.661]
[1721138241312,7.68006224,156.85,156.8,22.3207]
[1721138241620,6.3759,156.84,156.8,22.3207]
[1721138241814,1.30456224,156.83,156.8,15.9433]
[1721138242002,7.68136224,156.82,156.79,0.8419054]
[1721138242340,6.3774,156.81,156.79,0.8419054]
[1721138242500,1.30456224,156.8,156.79,0.8419054]
[1721138242702,6.3771,156.81,156.79,0.8419054]
[1721138242904,1.30456224,156.8,156.79,0.8419054]
[1721138243401,7.68206224,156.8,156.79,0.8419054]
[1721138243599,1.30456224,156.83,156.79,0.8419054]
[1721138243814,6.3772,156.81,156.79,0.8419054]
[1721138243997,1.30456224,156.8,156.79,0.8419054]
[1721138244193,7.68206224,156.8,156.79,0.8419054]
[1721138244398,6.3775,156.8,156.79,0.8419054]
[1721138244698,6.3772,156.81,156.79,0.8419054]
[1721138245112,1.30456224,156.8,156.79,0.8419054]